bitfinex-derivatives/quotes_BNBF0:USTF0_20250710
["timestamp","ask_amount","ask_price","bid_price","bid_amount"]
[1752143942113,1.44814183,669.76,669.35,1.332]
[1752143942318,1.44814183,669.75,669.35,1.332]
[1752143942919,3.33637441,670.45,669.35,1.332]
[1752143943121,2.2066545,670.44,669.35,1.332]
[1752143943415,1.66773238,670.0,669.35,1.332]
[1752143943619,1.44814187,669.99,669.35,1.332]
[1752143943816,1.44814187,669.98,669.35,1.332]
[1752143944016,1.44814187,669.97,669.35,1.332]
[1752143944221,1.44814187,669.96,669.35,1.332]
[1752143944418,1.44814187,669.95,669.35,1.332]
[1752143944620,1.44814187,669.94,669.35,1.332]
[1752143944818,1.44814187,669.93,669.35,1.332]
[1752143945020,1.44814187,669.92,669.35,1.332]
[1752143945316,1.44814187,669.91,669.35,1.332]
[1752143945515,1.44814187,669.9,669.35,1.332]
[1752143945721,1.44814187,669.89,669.35,1.332]
[1752143946020,1.44814187,669.88,669.35,1.332]
[1752143946321,1.44814187,669.87,669.35,1.332]
[1752143946519,1.44814187,669.86,669.35,1.332]
[1752143946715,1.44814187,669.85,669.35,1.332]
[1752143946920,1.44814187,669.84,669.35,1.332]
[1752143947216,1.44814187,669.83,669.35,1.332]
[1752143947417,1.44814187,669.82,669.35,1.332]
[1752143947617,1.44814187,669.81,669.35,1.332]
[1752143947816,1.44814187,669.8,669.35,1.332]
[1752143948020,1.44814187,669.79,669.35,1.332]
[1752143948221,1.44814187,669.78,669.35,1.332]
[1752143948421,1.44814187,669.77,669.35,1.332]
[1752143948617,1.44814187,669.76,669.35,1.332]
[1752143948818,1.44814187,669.75,669.35,1.332]
[1752143949120,1.44814187,669.74,669.35,1.332]
[1752143949318,1.44814187,669.73,669.35,1.332]
[1752143949522,1.66773238,669.98,669.35,1.332]
[1752143949721,1.44774356,669.97,669.35,1.332]
[1752143949918,1.44774356,669.96,669.35,1.332]
[1752143950118,3.11547594,669.95,669.35,1.332]
[1752143950317,1.44774356,669.94,669.35,1.332]
[1752143950521,1.44774356,669.93,669.35,1.332]
[1752143950720,1.44774356,669.92,669.35,1.332]
[1752143950920,1.44774356,669.91,669.35,1.332]
[1752143951123,1.44774356,669.9,669.35,1.332]
[1752143951322,1.44774356,669.89,669.35,1.332]
[1752143951520,1.44774356,669.88,669.35,1.332]
[1752143951725,1.44774356,669.87,669.35,1.332]
[1752143951922,1.44774356,669.86,669.34,0.25968793]
[1752143952122,1.44774356,669.85,669.34,0.25968793]
[1752143952326,1.44774356,669.84,669.34,0.25968793]
[1752143952525,1.44774356,669.83,669.34,0.25968793]
[1752143952723,1.44774356,669.82,669.34,0.25968793]
[1752143953024,1.44774356,669.81,669.34,0.25968793]
[1752143953328,1.44774356,669.8,669.34,0.25968793]
[1752143953623,1.44774356,669.79,669.34,0.25968793]
[1752143953823,1.44774356,669.78,669.34,0.25968793]
[1752143954028,1.44774356,669.77,669.34,0.25968793]
[1752143954225,1.44774356,669.76,669.34,0.25968793]
[1752143954425,1.44774356,669.75,669.35,1.981]
[1752143954724,1.44774356,669.74,669.35,1.981]
[1752143954928,1.44774356,669.73,669.35,1.981]
[1752143955128,1.44774356,669.72,669.35,1.981]
[1752143955428,1.44774356,669.71,669.35,1.981]
[1752143955628,1.44774356,669.7,669.35,1.981]
[1752143955829,1.44774356,669.69,669.35,1.981]
[1752143956029,1.44774356,669.68,669.35,1.981]
[1752143956229,1.44774356,669.67,669.35,1.981]
[1752143956426,1.44774356,669.66,669.35,1.981]
[1752143956627,1.44774356,669.65,669.35,1.981]
[1752143956927,1.66773238,669.96,669.35,1.981]
[1752143957131,1.44758736,669.95,669.35,1.981]
[1752143957327,1.44758736,669.94,669.35,1.981]
[1752143957528,1.44758736,669.93,669.35,1.981]
[1752143957729,1.44758736,669.92,669.35,1.981]
[1752143957929,1.44758736,669.91,669.35,1.981]
[1752143958129,1.44758736,669.9,669.35,1.981]
[1752143958434,1.44758736,669.89,669.35,1.981]
[1752143958633,1.44758736,669.88,669.35,1.981]
[1752143958834,1.44758736,669.87,669.35,1.981]
[1752143959031,1.44758736,669.86,669.35,1.981]
[1752143959231,1.44758736,669.85,669.35,1.981]
[1752143959433,1.44758736,669.84,669.35,1.981]
[1752143959631,1.44758736,669.83,669.35,1.981]
[1752143959835,1.44758736,669.82,669.35,1.981]
[1752143960035,1.44758736,669.81,669.35,1.981]
[1752143960233,1.44758736,669.8,669.35,1.981]
[1752143960537,1.44758736,669.79,669.35,1.981]
[1752143960737,1.44758736,669.78,669.35,1.981]
[1752143960937,1.44758736,669.77,669.35,1.981]
[1752143961138,1.44758736,669.76,669.35,1.981]
[1752143961438,1.44758736,669.75,669.35,1.981]
[1752143961635,1.44758736,669.74,669.35,1.981]
[1752143961833,1.44758736,669.73,669.35,1.981]
[1752143962037,1.44758736,669.72,669.35,1.981]
[1752143962232,1.44758736,669.71,669.35,1.981]
[1752143962534,1.44758736,669.7,669.35,1.981]
[1752143962735,1.44758736,669.69,669.35,1.981]
[1752143962938,1.44758736,669.68,669.35,1.981]
[1752143963138,1.44758736,669.67,669.35,1.981]
[1752143963338,1.44758736,669.66,669.35,1.981]
[1752143963537,1.44758736,669.65,669.35,1.981]
[1752143963841,1.44758736,669.64,669.35,1.981]
[1752143964136,1.44758736,669.63,669.35,1.981]
[1752143964339,1.44758736,669.62,669.35,1.981]
[1752143964538,1.44758736,669.61,669.35,1.981]
[1752143964736,1.44758736,669.6,669.35,1.981]
[1752143964935,1.44758736,669.59,669.35,1.981]
[1752143965139,1.44758736,669.58,669.35,1.981]
[1752143965340,1.44758736,669.57,669.35,1.981]
[1752143965635,1.44758736,669.56,669.35,1.981]
[1752143965840,1.44758736,669.55,669.35,1.981]
[1752143966040,1.66773238,669.89,669.35,1.981]
[1752143966240,3.11491604,669.88,669.35,1.981]
[1752143966537,1.44718366,669.87,669.35,1.981]
[1752143966738,1.44718366,669.86,669.35,1.981]
[1752143966941,1.44718366,669.85,669.35,1.981]
[1752143967241,1.44718366,669.84,669.35,1.981]
[1752143967439,1.44718366,669.83,669.35,1.981]
[1752143967639,1.44718366,669.82,669.35,1.981]
[1752143967838,1.44718366,669.81,669.35,1.981]
[1752143968038,1.44718366,669.8,669.35,1.981]
[1752143968240,1.44718366,669.79,669.35,1.981]
[1752143968443,1.44718366,669.78,669.35,1.981]
[1752143968739,1.44718366,669.77,669.35,1.981]
[1752143968943,1.44718366,669.76,669.35,1.981]
[1752143969145,1.44718366,669.75,669.35,1.981]
[1752143969345,1.44718366,669.74,669.35,1.981]
[1752143969540,1.44718366,669.73,669.35,1.981]
[1752143969743,1.44718366,669.72,669.35,1.981]
[1752143969942,1.44718366,669.71,669.35,1.981]
[1752143970143,1.44718366,669.7,669.35,1.981]
[1752143970341,1.44718366,669.69,669.35,1.981]
[1752143970541,1.44718366,669.68,669.35,1.981]
[1752143970845,1.44718366,669.67,669.35,1.981]
[1752143971043,1.44718366,669.66,669.35,1.981]
[1752143971245,1.44718366,669.65,669.35,1.981]
[1752143971444,1.44718366,669.64,669.35,1.981]
[1752143971647,1.44718366,669.63,669.35,1.981]
[1752143971848,1.44718366,669.62,669.35,1.981]
[1752143972044,1.44718366,669.61,669.35,1.981]
[1752143972249,1.44718366,669.6,669.35,1.981]
[1752143972451,1.44718366,669.59,669.35,1.981]
[1752143972746,1.44718366,669.58,669.35,1.981]
[1752143972951,1.66773238,669.84,669.35,1.981]
[1752143973146,1.44548132,669.83,669.35,1.981]
[1752143973445,1.44548132,669.82,669.35,1.981]
[1752143973654,1.44548132,669.81,669.35,1.981]
[1752143973855,1.44548132,669.8,669.35,1.981]
[1752143974151,1.44548132,669.79,669.35,1.981]
[1752143974352,1.44548132,669.78,669.35,1.981]
[1752143974654,1.44548132,669.77,669.35,1.981]
[1752143974854,1.44548132,669.76,669.35,1.981]
[1752143975051,1.44548132,669.75,669.35,1.981]
[1752143975255,1.44548132,669.74,669.35,1.981]
[1752143975455,1.44548132,669.73,669.35,1.981]
[1752143975755,1.44548132,669.72,669.35,1.981]
[1752143975954,1.44548132,669.71,669.35,1.981]
[1752143976252,1.44548132,669.7,669.35,1.981]
[1752143976555,1.44548132,669.69,669.35,1.981]
[1752143976850,1.44548132,669.68,669.35,1.981]
[1752143977055,1.44548132,669.67,669.35,1.981]
[1752143977253,1.44548132,669.66,669.35,1.981]
[1752143977451,1.44548132,669.65,669.35,1.981]
[1752143977654,1.44548132,669.64,669.35,1.981]
[1752143977850,1.66773238,669.81,669.35,1.981]
[1752143977851,1.44548132,669.63,669.35,1.981]
[1752143978053,1.44548132,669.62,669.35,1.981]
[1752143978253,1.44548132,669.61,669.35,1.981]
[1752143978453,1.44548132,669.6,669.35,1.981]
[1752143978755,1.44548132,669.59,669.35,1.981]
[1752143978954,1.44548132,669.58,669.35,1.981]
[1752143979250,1.44548132,669.57,669.35,1.981]
[1752143979454,1.66773238,669.81,669.35,1.981]
[1752143979751,1.4443502,669.8,669.35,1.981]
[1752143979956,1.4443502,669.79,669.35,1.981]
[1752143980157,1.4443502,669.78,669.35,1.981]
[1752143980457,1.4443502,669.77,669.35,1.981]
[1752143980654,1.4443502,669.76,669.35,1.981]
[1752143980855,1.4443502,669.75,669.35,1.981]
[1752143981052,1.4443502,669.74,669.35,1.981]
[1752143981254,1.4443502,669.73,669.35,1.981]
[1752143981555,1.4443502,669.72,669.35,1.981]
[1752143981759,1.4443502,669.71,669.35,1.981]
[1752143981958,1.4443502,669.7,669.35,1.981]
[1752143982254,1.4443502,669.69,669.35,1.981]
[1752143982460,1.4443502,669.68,669.35,1.981]
[1752143982659,1.4443502,669.67,669.35,1.981]
[1752143982860,1.4443502,669.66,669.35,1.981]
[1752143983059,1.4443502,669.65,669.35,1.981]
[1752143983257,1.4443502,669.64,669.35,1.981]
[1752143983560,1.4443502,669.63,669.35,1.981]
[1752143983760,1.4443502,669.62,669.35,1.981]
[1752143984056,1.4443502,669.61,669.35,1.981]
[1752143984261,1.4443502,669.6,669.35,1.981]
[1752143984456,1.4443502,669.59,669.35,1.981]
[1752143984661,1.4443502,669.58,669.35,1.981]
[1752143984859,1.66773238,669.82,669.35,1.981]
[1752143985061,1.4438167,669.81,669.35,1.981]
[1752143985357,1.4438167,669.8,669.35,1.981]
[1752143985556,1.4438167,669.79,669.35,1.981]
[1752143985760,1.4438167,669.78,669.35,1.981]
[1752143986058,1.4438167,669.77,669.35,1.981]
[1752143986262,1.4438167,669.76,669.35,1.981]
[1752143986461,1.4438167,669.75,669.35,1.981]
[1752143986761,1.4438167,669.74,669.35,1.981]
[1752143986960,1.4438167,669.73,669.35,1.981]
[1752143987257,1.4438167,669.72,669.35,1.981]
[1752143987457,1.4438167,669.71,669.35,1.981]
[1752143987662,1.66773238,669.83,669.35,1.981]
[1752143987663,1.4438167,669.7,669.35,1.981]
[1752143987957,1.4438167,669.69,669.35,1.981]
[1752143988159,1.4438167,669.68,669.35,1.981]
[1752143988358,1.4438167,669.67,669.35,1.981]
[1752143988562,1.4438167,669.66,669.35,1.981]
[1752143988758,1.4438167,669.65,669.35,1.981]
[1752143988962,1.4438167,669.64,669.35,1.981]
[1752143989262,1.4438167,669.63,669.35,1.981]
[1752143989463,1.4438167,669.62,669.35,1.981]
[1752143989664,1.4438167,669.61,669.35,1.981]
[1752143989864,1.4438167,669.6,669.35,1.981]
[1752143990064,1.4438167,669.59,669.35,1.981]
[1752143990263,1.4438167,669.58,669.35,1.981]
[1752143990461,1.4438167,669.57,669.35,1.981]
[1752143990664,1.4438167,669.56,669.35,1.981]
[1752143990862,1.66773238,669.85,669.35,1.981]
[1752143991065,1.44296154,669.84,669.35,1.981]
[1752143991266,1.44296154,669.83,669.35,1.981]
[1752143991564,1.44296154,669.82,669.35,1.981]
[1752143991765,1.44296154,669.81,669.35,1.981]
[1752143991963,1.44296154,669.8,669.35,1.981]
[1752143992162,1.44296154,669.79,669.35,1.981]
[1752143992363,1.44296154,669.78,669.34,0.25968793]
[1752143992562,1.44296154,669.77,669.34,0.25968793]
[1752143992762,1.44296154,669.76,669.34,0.25968793]
[1752143992962,1.44296154,669.75,669.34,0.25968793]
[1752143993162,1.44296154,669.74,669.34,0.25968793]
[1752143993366,1.44296154,669.73,669.34,0.25968793]
[1752143993666,1.44296154,669.72,669.34,0.25968793]
[1752143993867,1.44296154,669.71,669.34,0.25968793]
[1752143994168,1.44296154,669.7,669.34,0.25968793]
[1752143994364,1.44296154,669.69,669.34,0.25968793]
[1752143994667,1.44296154,669.68,669.34,0.25968793]
[1752143994867,1.44296154,669.67,669.34,0.25968793]
[1752143995063,1.44296154,669.66,669.34,0.25968793]
[1752143995261,1.44296154,669.65,669.34,0.25968793]
[1752143995463,1.44296154,669.64,669.34,0.25968793]
[1752143995664,1.44296154,669.63,669.34,0.25968793]
[1752143995864,1.66773238,669.9,669.35,1.383]
[1752143996067,1.44304488,669.89,669.35,1.383]
[1752143996268,1.44304488,669.88,669.35,1.383]
[1752143996564,1.44304488,669.87,669.35,1.383]
[1752143996764,1.44304488,669.86,669.35,1.383]
[1752143996967,1.66773238,669.91,669.35,1.383]
[1752143996968,1.44304488,669.85,669.35,1.383]
[1752143997168,1.44304488,669.84,669.35,1.383]
[1752143997467,1.44304488,669.83,669.35,1.383]
[1752143997668,1.44304488,669.82,669.35,1.383]
[1752143997867,1.44304488,669.81,669.35,1.383]
[1752143998067,1.44304488,669.8,669.35,1.383]
[1752143998367,1.44304488,669.79,669.35,1.383]
[1752143998565,1.44304488,669.78,669.35,1.383]
[1752143998766,1.44304488,669.77,669.35,1.383]
[1752143998966,1.44304488,669.76,669.35,1.383]
[1752143999166,1.44304488,669.75,669.35,1.383]
[1752143999365,1.44304488,669.74,669.35,1.383]
[1752143999568,1.44304488,669.73,669.35,1.383]
[1752143999768,1.44304488,669.72,669.35,1.383]
[1752143999964,1.44304488,669.71,669.35,1.383]
[1752144000169,1.44304488,669.7,669.35,1.383]
[1752144000470,1.44304488,669.69,669.35,1.383]
[1752144000669,2.22364317,670.05,669.35,1.383]
[1752144000670,1.44304488,669.68,669.35,1.383]
[1752144000864,1.44304488,669.67,669.35,1.383]
[1752144001066,1.44304488,669.66,669.35,1.383]
[1752144001269,1.44304488,669.65,669.35,1.383]
[1752144001568,1.44304488,669.64,669.35,1.383]
[1752144001766,1.44304488,669.63,669.35,1.383]
[1752144002068,1.44304488,669.62,669.35,1.383]
[1752144002268,1.66773238,669.89,669.35,1.383]
[1752144002566,1.4434506,669.88,669.35,1.383]
[1752144002765,1.4434506,669.87,669.35,1.383]
[1752144003069,1.4434506,669.86,669.35,1.383]
[1752144003369,1.4434506,669.85,669.35,1.383]
[1752144003566,1.4434506,669.84,669.35,1.383]
[1752144003768,1.4434506,669.83,669.35,1.383]
[1752144003969,1.4434506,669.82,669.35,1.383]
[1752144004163,1.4434506,669.81,669.35,1.383]
[1752144004364,1.4434506,669.8,669.35,1.383]
[1752144004566,1.4434506,669.79,669.35,1.383]
[1752144004765,1.4434506,669.78,669.35,1.383]
[1752144004967,1.4434506,669.77,669.35,1.383]
[1752144005167,1.4434506,669.76,669.35,1.383]
[1752144005366,1.4434506,669.75,669.35,1.383]
[1752144005668,1.4434506,669.74,669.35,1.383]
[1752144005865,1.4434506,669.73,669.35,1.383]
[1752144006170,1.4434506,669.72,669.35,1.383]
[1752144006371,1.4434506,669.71,669.35,1.383]
[1752144006572,1.4434506,669.7,669.35,1.383]
[1752144006874,1.4434506,669.69,669.35,1.383]
[1752144007172,1.4434506,669.68,669.35,1.383]
[1752144007372,1.4434506,669.67,669.35,1.383]
[1752144007569,1.4434506,669.66,669.35,1.383]
[1752144007769,1.4434506,669.65,669.35,1.383]
[1752144007969,1.66773238,669.91,669.35,1.383]
[1752144008170,1.44406812,669.9,669.35,1.383]
[1752144008471,1.44406812,669.89,669.35,1.383]
[1752144008669,1.44406812,669.88,669.35,1.383]
[1752144008872,1.44406812,669.87,669.35,1.383]
[1752144009072,1.44406812,669.86,669.35,1.383]
[1752144009269,1.44406812,669.85,669.35,1.383]
[1752144009468,1.44406812,669.84,669.35,1.383]
[1752144009672,1.44406812,669.83,669.35,1.383]
[1752144009868,1.44406812,669.82,669.35,1.383]
[1752144010071,1.44406812,669.81,669.35,1.383]
[1752144010372,1.44406812,669.8,669.35,1.383]
[1752144010670,1.44406812,669.79,669.35,1.383]
[1752144010972,1.44406812,669.78,669.35,1.383]
[1752144011169,1.44406812,669.77,669.35,1.383]
[1752144011373,1.44406812,669.76,669.35,1.383]
[1752144011669,1.44406812,669.75,669.35,1.383]
[1752144011875,1.44406812,669.74,669.35,1.383]
[1752144012170,1.44406812,669.73,669.35,1.383]
[1752144012373,1.44406812,669.72,669.35,1.383]
[1752144012674,1.44406812,669.71,669.35,1.383]
[1752144012970,1.44406812,669.7,669.35,1.383]
[1752144013273,1.44406812,669.69,669.35,1.383]
[1752144013470,1.44406812,669.68,669.35,1.383]
[1752144013769,1.44406812,669.67,669.35,1.383]
[1752144014073,1.44406812,669.66,669.35,1.383]
[1752144014268,1.44406812,669.65,669.35,1.383]
[1752144014475,1.44406812,669.64,669.35,1.383]
[1752144014774,1.44406812,669.63,669.35,1.383]
[1752144015070,1.44406812,669.62,669.35,1.383]
[1752144015272,1.44527136,669.61,669.35,1.383]
[1752144015473,1.66773238,669.91,669.35,1.383]
[1752144015672,1.44527136,669.9,669.35,1.383]
[1752144015871,1.44527136,669.89,669.35,1.383]
[1752144016074,1.44527136,669.88,669.35,1.383]
[1752144016269,1.44527136,669.87,669.35,1.383]
[1752144016568,1.44527136,669.86,669.35,1.383]
[1752144016772,1.44527136,669.85,669.35,1.383]
[1752144016973,0.96227336,670.07,669.34,0.25968793]
[1752144016974,1.44527136,669.84,669.34,0.25968793]
[1752144017173,1.44527136,669.83,669.34,0.25968793]
[1752144017470,1.44527136,669.82,669.34,0.25968793]
[1752144017670,1.44527136,669.81,669.34,0.25968793]
[1752144017870,1.44527136,669.8,669.34,0.25968793]
[1752144018074,1.44527136,669.79,669.34,0.25968793]
[1752144018273,1.44527136,669.78,669.34,0.25968793]
[1752144018469,1.44527136,669.77,669.34,0.25968793]
[1752144018671,1.44527136,669.76,669.34,0.25968793]
[1752144018872,1.44527136,669.75,669.34,0.25968793]
[1752144019073,1.44527136,669.74,669.34,0.25968793]
[1752144019374,1.44527136,669.73,669.34,0.25968793]
[1752144019573,1.44527136,669.72,669.34,0.25968793]
[1752144019773,1.44527136,669.71,669.34,0.25968793]
[1752144019975,1.44527136,669.7,669.34,0.25968793]
[1752144020269,1.44527136,669.69,669.35,1.936]
[1752144020573,1.44527136,669.68,669.35,1.936]
[1752144020870,1.44527136,669.67,669.35,1.936]
[1752144021068,1.44527136,669.66,669.35,1.936]
[1752144021272,1.44527136,669.65,669.35,1.936]
[1752144021473,1.44527136,669.64,669.35,1.936]
[1752144021671,1.44527136,669.63,669.35,1.936]
[1752144021869,1.44527136,669.62,669.35,1.936]
[1752144022075,1.44527136,669.61,669.35,1.936]
[1752144022275,1.44527136,669.6,669.35,1.936]
[1752144022475,1.44527136,669.59,669.35,1.936]
[1752144022672,1.44527136,669.58,669.35,1.936]
[1752144022872,1.44527136,669.57,669.35,1.936]
[1752144023077,1.44527136,669.56,669.35,1.936]
[1752144023375,1.44527136,669.55,669.35,1.936]
[1752144023576,1.44527136,669.54,669.35,1.936]
[1752144023873,1.66773238,669.8,669.35,1.936]
[1752144024076,1.44648023,669.79,669.35,1.936]
[1752144024276,1.44648023,669.78,669.35,1.936]
[1752144024476,1.44648023,669.77,669.35,1.936]
[1752144024677,1.44648023,669.76,669.35,1.936]
[1752144024875,1.44648023,669.75,669.35,1.936]
[1752144025075,1.44648023,669.74,669.35,1.936]
[1752144025274,1.44648023,669.73,669.35,1.936]
[1752144025474,1.44648023,669.72,669.35,1.936]
[1752144025678,1.44648023,669.71,669.35,1.936]
[1752144025877,1.44648023,669.7,669.35,1.936]
[1752144026175,1.44648023,669.69,669.35,1.936]
[1752144026376,1.44648023,669.68,669.35,1.936]
[1752144026579,1.44648023,669.67,669.35,1.936]
[1752144026776,1.44648023,669.66,669.35,1.936]
[1752144027077,1.44648023,669.65,669.35,1.936]
[1752144027277,1.44648023,669.64,669.35,1.936]
[1752144027479,1.44648023,669.63,669.35,1.936]
[1752144027680,1.44648023,669.62,669.35,1.936]
[1752144027875,1.44648023,669.61,669.35,1.936]
[1752144028177,1.44648023,669.6,669.35,1.936]
[1752144028376,1.44648023,669.59,669.35,1.936]
[1752144028577,1.44648023,669.58,669.35,1.936]
[1752144028777,1.44648023,669.57,669.35,1.936]
[1752144029082,1.44648023,669.56,669.35,1.936]
[1752144029377,1.44648023,669.55,669.35,1.936]
[1752144029576,1.44648023,669.54,669.35,1.936]
[1752144029779,1.44648023,669.53,669.35,1.936]
[1752144029976,1.66773238,669.83,669.35,1.936]
[1752144030175,1.44653485,669.82,669.35,1.936]
[1752144030380,1.44653485,669.81,669.35,1.936]
[1752144030578,1.44653485,669.8,669.35,1.936]
[1752144030779,1.44653485,669.79,669.35,1.936]
[1752144030979,1.44653485,669.78,669.35,1.936]
[1752144031178,1.44653485,669.77,669.35,1.936]
[1752144031382,1.44653485,669.76,669.35,1.936]
[1752144031582,1.44659762,669.75,669.35,1.936]
[1752144031780,1.44659762,669.74,669.35,1.936]
[1752144031979,1.44659762,669.73,669.35,1.936]
[1752144032182,1.44659762,669.72,669.35,1.936]
[1752144032381,1.44659762,669.71,669.35,1.936]
[1752144032580,1.44659762,669.7,669.35,1.936]
[1752144032784,1.44659762,669.69,669.35,1.936]
[1752144033084,1.44659762,669.68,669.35,1.936]
[1752144033285,1.44659762,669.67,669.35,1.936]
[1752144033480,1.44659762,669.66,669.35,1.936]
[1752144033681,1.44659762,669.65,669.35,1.936]
[1752144033985,1.44659762,669.64,669.35,1.936]
[1752144034283,1.44659762,669.63,669.35,1.936]
[1752144034486,1.44659762,669.62,669.35,1.936]
[1752144034687,1.44659762,669.61,669.35,1.936]
[1752144034886,1.44659762,669.6,669.35,1.936]
[1752144035081,1.44659762,669.59,669.35,1.936]
[1752144035287,1.44659762,669.58,669.35,1.936]
[1752144035484,1.44659762,669.57,669.35,1.936]
[1752144035787,1.44659762,669.56,669.35,1.936]
[1752144035985,1.44659762,669.55,669.35,1.936]
[1752144036289,1.44659762,669.54,669.35,1.936]
[1752144036487,1.44659762,669.53,669.35,1.936]
[1752144036685,1.666483,669.82,669.35,1.936]
[1752144036888,1.44692621,669.81,669.35,1.936]
[1752144037188,1.44692621,669.8,669.35,1.936]
[1752144037388,1.44692621,669.79,669.35,1.936]
[1752144037587,1.44692621,669.78,669.35,1.936]
[1752144037785,1.44692621,669.77,669.35,1.936]
[1752144038089,1.44692621,669.76,669.35,1.936]
[1752144038290,1.44692621,669.75,669.35,1.936]
[1752144038489,1.44692621,669.74,669.35,1.936]
[1752144038786,1.44692621,669.73,669.35,1.936]
[1752144038987,1.44692621,669.72,669.35,1.936]
[1752144039190,1.44692621,669.71,669.35,1.936]
[1752144039391,1.44692621,669.7,669.35,1.936]
[1752144039591,1.44692621,669.69,669.35,1.936]
[1752144039786,1.44692621,669.68,669.35,1.936]
[1752144039992,1.44692621,669.67,669.35,1.936]
[1752144040188,1.44692621,669.66,669.35,1.936]
[1752144040389,1.44692621,669.65,669.35,1.936]
[1752144040589,1.44692621,669.64,669.35,1.936]
[1752144040889,1.44692621,669.63,669.35,1.936]
[1752144041189,1.44692621,669.62,669.35,1.936]
[1752144041387,1.44692621,669.61,669.35,1.936]
[1752144041588,1.44692621,669.6,669.35,1.936]
[1752144041791,1.666483,669.79,669.35,1.936]
[1752144041792,1.44692621,669.59,669.35,1.936]
[1752144042088,1.44692621,669.58,669.35,1.936]
[1752144042292,1.44692621,669.57,669.35,1.936]
[1752144042492,0.96334424,669.97,669.35,1.936]
[1752144042493,1.44692621,669.56,669.35,1.936]
[1752144042792,1.44692621,669.55,669.35,1.936]
[1752144042989,1.44692621,669.54,669.35,1.936]
[1752144043289,1.44692621,669.53,669.35,1.936]
[1752144043492,1.44692621,669.52,669.35,1.936]
[1752144043790,1.44692621,669.51,669.35,1.936]
[1752144044090,1.44692621,669.5,669.35,1.936]
[1752144044292,1.44692621,669.49,669.35,1.936]
[1752144044489,1.44692621,669.48,669.35,1.936]
[1752144044693,1.44692621,669.47,669.35,1.936]
[1752144044988,1.44692621,669.46,669.35,1.936]
[1752144045195,1.44692621,669.45,669.35,1.936]
[1752144045391,1.44692621,669.44,669.35,1.936]
[1752144045597,1.666483,669.72,669.35,1.936]
[1752144045893,1.44636196,669.71,669.35,1.936]
[1752144046096,1.44636196,669.7,669.35,1.936]
[1752144046296,1.44636196,669.69,669.35,1.936]
[1752144046595,1.44636196,669.68,669.35,1.936]
[1752144046799,1.44636196,669.67,669.35,1.936]
[1752144047000,1.44636196,669.66,669.35,1.936]
[1752144047303,1.44636196,669.65,669.35,1.936]
[1752144047600,1.44636196,669.64,669.35,1.936]
[1752144047799,1.44636196,669.63,669.35,1.936]
[1752144047997,1.44636196,669.62,669.35,1.936]
[1752144048195,1.44636196,669.61,669.35,1.936]
[1752144048397,1.44636196,669.6,669.35,1.936]
[1752144048595,1.44636196,669.59,669.35,1.936]
[1752144048794,1.44636196,669.58,669.35,1.936]
[1752144048996,1.44636196,669.57,669.35,1.936]
[1752144049199,1.44636196,669.56,669.35,1.936]
[1752144049398,1.44636196,669.55,669.35,1.936]
[1752144049697,1.44636196,669.54,669.35,1.936]
[1752144049997,1.666483,669.72,669.35,1.936]
[1752144049998,1.44636196,669.53,669.35,1.936]
[1752144050199,1.44636196,669.52,669.35,1.936]
[1752144050495,1.44636196,669.51,669.35,1.936]
[1752144050695,1.44636196,669.5,669.35,1.936]
[1752144050996,1.44636196,669.49,669.35,1.936]
[1752144051196,1.44636196,669.48,669.35,1.936]
[1752144051399,1.44636196,669.47,669.35,1.936]
[1752144051600,1.44636196,669.46,669.35,1.936]
[1752144051796,1.44636196,669.45,669.35,1.936]
[1752144051997,1.44636196,669.44,669.35,1.936]